fUST/lending_fUST_20241201
["ID","MTS","AMOUNT","RATE_DAILY","PERIOD"]
[343908171,1733032239774,-161.23347385,0.00027397,3]
[343908172,1733032239783,-508.68212851,0.00027397,3]
[343908173,1733032239793,-500.0,0.00027397,3]
[343908174,1733032239802,-505.79104698,0.00027397,3]
[343908175,1733032239812,-500.0,0.00027397,3]
[343908176,1733032239821,-512.22939423,0.00027397,3]
[343908177,1733032239831,-500.0,0.00027397,3]
[343908178,1733032239842,-316.15891873,0.00027397,3]
[343908179,1733032239851,-500.0,0.00027397,3]
[343908180,1733032239861,-500.0,0.00027397,3]
[343908181,1733032239870,-500.0,0.00027397,3]
[343908182,1733032239879,-507.19394001,0.00027397,3]
[343908183,1733032239889,-500.0,0.00027397,3]
[343908184,1733032239898,-500.0,0.00027397,3]
[343908185,1733032239907,-500.0,0.00027397,3]
[343908187,1733032239916,-500.0,0.00027397,3]
[343908188,1733032239926,-500.0,0.00027397,3]
[343908190,1733032239935,-500.0,0.00027397,3]
[343908192,1733032239944,-500.0,0.00027397,3]
[343908194,1733032239953,-500.0,0.00027397,3]
[343908195,1733032239962,-500.0,0.00027397,3]
[343908196,1733032239971,-505.00688673,0.00027397,3]
[343908197,1733032239981,-618.74,0.00027397,3]
[343908198,1733032239991,-546.28698252,0.00027397,3]
[343908199,1733032240001,-500.0,0.00027397,3]
[343908200,1733032240010,-500.0,0.00027397,3]
[343908201,1733032240020,-345.3047764,0.00027397,3]
[343908202,1733032240030,-500.0,0.00027397,2]
[343908203,1733032240039,-500.0,0.00027397,3]
[343908204,1733032240049,-505.03712472,0.00027397,3]
[343908205,1733032240063,-628.34666764,0.00027397,3]
[343908206,1733032240073,-500.0,0.00027397,3]
[343908207,1733032240083,-250.36,0.00027397,3]
[343908208,1733032240095,-500.0,0.00027397,3]
[343908210,1733032240109,-531.25,0.00027397,3]
[343908211,1733032240119,-500.0,0.00027397,3]
[343908212,1733032240130,-500.0,0.00027397,3]
[343908213,1733032240140,-500.0,0.00027397,3]
[343908214,1733032240150,-500.0,0.00027397,3]
[343908215,1733032240160,-500.0,0.00027397,3]
[343908216,1733032240170,-500.0,0.00027397,3]
[343908217,1733032240179,-500.0,0.00027397,3]
[343908218,1733032240190,-500.0,0.00027397,3]
[343908219,1733032240201,-500.0,0.00027397,3]
[343908220,1733032240211,-501.80525261,0.00027397,3]
[343908221,1733032240222,-502.33450305,0.00027397,3]
[343908222,1733032240232,-498.7594429,0.00027397,3]
[343908223,1733032240243,-500.0,0.00027397,3]
[343908224,1733032240253,-500.0,0.00027397,3]
[343908225,1733032240262,-500.0,0.00027397,3]
[343908226,1733032240272,-300.0,0.000275,2]
[343908227,1733032240282,-160.0,0.00027564,3]
[343908228,1733032240292,-152.0,0.00027578,2]
[343908229,1733032240301,-420.0,0.00027582,2]
[343908230,1733032240312,-244.0,0.00027616,2]
[343908231,1733032240322,-500.0,0.00027671,3]
[343908232,1733032240333,-500.0,0.00027671,3]
[343908233,1733032240344,-500.0,0.00027671,3]
[343908234,1733032240354,-500.0,0.00027671,3]
[343908235,1733032240364,-500.0,0.00027671,3]
[343908236,1733032240374,-500.0,0.00027671,3]
[343908237,1733032240384,-500.0,0.00027671,3]
[343908238,1733032240394,-500.0,0.00027671,3]
[343908239,1733032240404,-500.0,0.00027671,3]
[343908240,1733032240414,-500.0,0.00027671,3]
[343908241,1733032240424,-500.0,0.00027671,3]
[343908242,1733032240434,-577.93265485,0.00027671,3]
[343908243,1733032240444,-500.0,0.00027671,3]
[343908244,1733032240453,-618.74,0.00027671,3]
[343908245,1733032240463,-500.0,0.00027671,2]
[343908246,1733032240472,-498.73471493,0.00027671,3]
[343908247,1733032240482,-500.0,0.00027671,3]
[343908248,1733032240492,-500.0,0.00027671,3]
[343908249,1733032240502,-531.25,0.00027671,3]
[343908250,1733032240512,-500.0,0.00027671,3]
[343908251,1733032240521,-500.0,0.00027671,3]
[343908252,1733032240530,-500.0,0.00027671,3]
[343908253,1733032240540,-1169.27083333,0.00027671,3]
[343908254,1733032240550,-500.0,0.00027671,3]
[343908255,1733032240560,-500.0,0.00027671,3]
[343908256,1733032240570,-500.0,0.00027671,3]
[343908257,1733032240580,-500.0,0.00027671,3]
[343908258,1733032240590,-500.0,0.00027671,3]
[343908259,1733032240602,-500.0,0.00027671,3]
[343908260,1733032240611,-573.67,0.000278,2]
[343908261,1733032240621,-374.61219569,0.00027945,3]
[343908263,1733032240632,-500.0,0.00027945,3]
[343908264,1733032240641,-500.0,0.00027945,3]
[343908265,1733032240651,-500.0,0.00027945,3]
[343908266,1733032240661,-500.0,0.00027945,3]
[343908267,1733032240671,-500.0,0.00027945,3]
[343908268,1733032240682,-176.62,0.00027945,3]
[343908269,1733032240692,-500.0,0.00027945,3]
[343908270,1733032240702,-618.74,0.00027945,3]
[343908271,1733032240712,-210.04,0.00027945,2]
[343908272,1733032240721,-500.0,0.00027945,3]
[343908273,1733032240731,-500.0,0.00027945,3]
[343908274,1733032240741,-531.25,0.00027945,3]
[343908275,1733032240751,-527.22,0.00027945,3]
[343908276,1733032240761,-500.0,0.00027945,3]
[343908277,1733032240770,-500.0,0.00027945,3]
[343908278,1733032240779,-500.0,0.00027945,3]
[343908279,1733032240788,-500.0,0.00027945,3]
[343908280,1733032240798,-500.0,0.00027945,3]
[343908281,1733032240808,-2139.05023179,0.00027965,2]
[343908282,1733032240819,-160.0,0.00028066,2]
[343908283,1733032240828,-496.32097,0.00028073,15]
[343908284,1733032240838,-1818.43756111,0.00028184,2]
[343908285,1733032240850,-500.0,0.00028219,3]
[343908286,1733032240859,-500.0,0.00028219,3]
[343908287,1733032240869,-466.10597023,0.00028219,3]
[343908288,1733032240879,-618.74,0.00028219,3]
[343908289,1733032240889,-500.0,0.00028219,3]
[343908290,1733032240898,-531.25,0.00028219,3]
[343908291,1733032240907,-500.0,0.00028219,3]
[343908292,1733032240917,-500.0,0.00028219,3]
[343908293,1733032240926,-500.0,0.00028219,3]
[343908294,1733032240936,-500.0,0.00028219,3]
[343908295,1733032240945,-500.0,0.00028219,3]
[343908296,1733032240956,-6867.44,0.0002824,2]
[343908297,1733032240966,-6867.44,0.0002825,2]
[343908298,1733032240976,-6867.44,0.0002825,2]
[343908299,1733032240986,-6867.44,0.0002825,2]
[343908300,1733032240996,-6867.44,0.0002825,2]
[343908301,1733032241005,-151.0,0.00028251,7]
[343908302,1733032241015,-151.0,0.00028251,7]
[343908303,1733032241025,-151.0,0.00028251,7]
[343908304,1733032241035,-151.0,0.00028251,7]
[343908305,1733032241045,-151.0,0.00028252,7]
[343908306,1733032241057,-151.0,0.00028252,7]
[343908307,1733032241069,-6867.44,0.00028261,2]
[343908308,1733032241079,-151.0,0.00028262,7]
[343908309,1733032241089,-151.0,0.00028262,7]
[343908310,1733032241102,-151.0,0.00028262,7]
[343908311,1733032241112,-151.0,0.00028262,7]
[343908312,1733032241122,-151.0,0.00028262,7]
[343908313,1733032241132,-151.0,0.00028262,7]
[343908314,1733032241144,-151.0,0.00028262,7]
[343908315,1733032241154,-151.0,0.00028262,7]
[343908316,1733032241163,-151.0,0.00028262,7]
[343908317,1733032241173,-151.0,0.00028262,7]
[343908318,1733032241183,-151.0,0.00028262,7]
[343908319,1733032241193,-151.0,0.00028262,7]
[343908320,1733032241203,-151.0,0.00028262,7]
[343908321,1733032241212,-151.0,0.00028262,7]
[343908322,1733032241221,-151.0,0.00028262,7]
[343908323,1733032241231,-151.0,0.00028262,7]
[343908324,1733032241241,-6867.44,0.00028264,2]
[343908325,1733032241251,-6867.44,0.00028264,2]
[343908326,1733032241261,-500.0,0.00028265,3]
[343908327,1733032241270,-615.67006271,0.00028265,3]
[343908328,1733032241280,-500.0,0.00028265,3]
[343908329,1733032241290,-500.0,0.00028265,3]
[343908330,1733032241299,-501.60530831,0.00028265,3]
[343908331,1733032241309,-509.0218995,0.00028265,3]
[343908332,1733032241319,-505.75309223,0.00028265,3]
[343908333,1733032241329,-500.0,0.00028265,3]
[343908334,1733032241339,-500.0,0.00028265,3]
[343908335,1733032241351,-501.16723447,0.00028265,3]
[343908336,1733032241361,-500.0,0.00028265,3]
[343908337,1733032241370,-500.0,0.00028265,3]
[343908338,1733032241380,-500.0,0.00028265,3]
[343908339,1733032241390,-500.0,0.00028265,3]
[343908340,1733032241400,-500.0,0.00028265,3]
[343908341,1733032241410,-500.0,0.00028265,3]
[343908342,1733032241499,-500.0,0.00028265,3]
[343908343,1733032241509,-500.0,0.00028265,3]
[343908344,1733032241519,-511.27396635,0.00028265,3]
[343908345,1733032241530,-500.0,0.00028265,3]
[343908346,1733032241540,-500.0,0.00028265,3]
[343908347,1733032241550,-500.0,0.00028265,3]
[343908348,1733032241560,-500.0,0.00028265,3]
[343908349,1733032241570,-500.0,0.00028265,3]
[343908350,1733032241580,-500.0,0.00028265,3]
[343908351,1733032241590,-517.12426603,0.00028265,3]
[343908352,1733032241602,-500.0,0.00028265,3]
[343908353,1733032241611,-500.0,0.00028265,3]
[343908354,1733032241621,-500.0,0.00028265,3]
[343908355,1733032241631,-607.41806872,0.00028265,3]
[343908356,1733032241641,-517.92372519,0.00028265,3]
[343908357,1733032241651,-500.0,0.00028265,3]
[343908358,1733032241661,-500.0,0.00028265,3]
[343908359,1733032241671,-501.68566552,0.00028265,3]
[343908360,1733032241682,-504.09845794,0.00028265,3]
[343908361,1733032241692,-501.5484629,0.00028265,3]
[343908362,1733032241702,-500.88836543,0.00028265,3]
[343908363,1733032241711,-500.0,0.00028265,3]
[343908364,1733032241721,-500.65787272,0.00028265,3]
[343908365,1733032241731,-500.0,0.00028265,3]
[343908366,1733032241741,-500.0,0.00028265,3]
[343908367,1733032241751,-506.84703287,0.00028265,3]
[343908368,1733032241761,-500.0,0.00028265,3]
[343908369,1733032241770,-500.0,0.00028265,3]
[343908370,1733032241780,-463.34284437,0.00028265,3]
[343908371,1733032241790,-500.0,0.00028265,3]
[343908372,1733032241800,-502.273463,0.00028265,3]
[343908373,1733032241810,-151.0,0.00028265,7]
[343908374,1733032241819,-204.290956,0.00028265,7]
[343908375,1733032241829,-501.40675853,0.00028265,3]
[343908376,1733032241839,-505.07481684,0.00028265,3]
[343908377,1733032241851,-500.0,0.00028265,3]
[343908378,1733032241860,-585.93831573,0.00028265,3]
[343908379,1733032241869,-506.10358829,0.00028265,3]
[343908380,1733032241879,-500.0,0.00028265,3]
[343908381,1733032241888,-500.0,0.00028265,3]
[343908382,1733032241898,-500.0,0.00028265,2]
[343908383,1733032241907,-269.3232037,0.00028265,3]
[343908406,1733032780645,400.0,0.00013973,2]
[343908488,1733033358152,-1169.27083333,0.0002,2]
[343908489,1733033358176,-201.00230867,0.00020447,2]
[343908490,1733033362097,-198.99769133,0.00020447,2]
[343908491,1733033362119,-3000.0,0.00021,2]
[343908492,1733033362141,-3000.0,0.0002101,2]
[343908493,1733033362162,-300.0,0.00021019,2]
[343908494,1733033362184,-300.0,0.00021019,2]
[343908495,1733033362207,-4010.021248,0.0002102,2]
[343908496,1733033362233,-420.0,0.00022864,2]
[343908497,1733033362256,-75.63856885,0.00023121,2]
[343908499,1733033432719,-1169.27083333,0.0002,2]
[343908500,1733033432729,-3864.62555864,0.00024142,2]
[343908501,1733033432740,-882.86190196,0.00024142,2]
[343908502,1733033432750,-192.086882,0.00024175,2]
[343908503,1733033432759,-300.0,0.0002683,2]
[343908504,1733033432768,-300.0,0.0002683,2]
[343908505,1733033432777,-6535.65,0.00026831,2]
[343908506,1733033432786,-400.0,0.00026921,2]
[343908507,1733033432796,-2075.79644836,0.00027297,2]
[343908508,1733033432806,-154.68072709,0.00027373,2]
[343908509,1733033432816,-500.0,0.00027373,2]
[343908510,1733033432825,-500.0,0.00027373,2]
[343908511,1733033432834,-501.47070816,0.00027373,2]
[343908512,1733033432853,-153.80217214,0.00027373,2]
[343908513,1733033432865,-500.0,0.00027373,2]
[343908514,1733033432875,-500.0,0.00027373,2]
[343908515,1733033432885,-632.75402473,0.00027373,2]
[343908516,1733033432895,-521.08575881,0.00027373,2]
[343908517,1733033432905,-183.696,0.00027373,16]
[343908518,1733033432915,-4096.67,0.00027387,10]
[343908519,1733033432925,-3044.06940189,0.00027391,2]
[343908548,1733033438874,-3413.89,0.00027387,10]
[343908549,1733033438885,-3491.58059811,0.00027391,2]
[343908550,1733033438894,-1231.86811908,0.00027393,2]
[343908551,1733033438904,-6535.65,0.00027394,2]
[343908552,1733033438914,-500.0,0.00027394,2]
[343908553,1733033438923,-500.0,0.00027394,2]
[343908554,1733033438933,-500.0,0.00027394,2]
[343908555,1733033438943,-500.0,0.00027394,2]
[343908556,1733033438952,-169.71090098,0.00027394,2]
[343908557,1733033438961,-500.0,0.00027394,2]
[343908558,1733033438971,-500.0,0.00027394,2]
[343908559,1733033438981,-500.0,0.00027394,2]
[343908560,1733033438990,-500.0,0.00027394,2]
[343908561,1733033439001,-359.44643175,0.00027394,2]
[343908562,1733033439010,-500.0,0.00027394,2]
[343908563,1733033439020,-500.0,0.00027394,2]
[343908564,1733033439030,-500.0,0.00027394,2]
[343908565,1733033439040,-500.0,0.00027394,2]
[343908566,1733033439050,-472.40783544,0.00027394,2]
[343908568,1733033439059,-500.0,0.00027394,2]
[343908569,1733033439069,-491.86001874,0.00027394,2]
[343908570,1733033439078,-168.41518081,0.00027394,2]
[343908571,1733033439088,-500.0,0.00027394,2]
[343908572,1733033439097,-500.0,0.00027394,2]
[343908573,1733033439106,-500.0,0.00027394,2]
[343908574,1733033439116,-613.33711244,0.00027394,2]
[343908575,1733033439125,-500.0,0.00027394,2]
[343908576,1733033439135,-500.0,0.00027394,2]
[343908577,1733033439144,-500.0,0.00027394,2]
[343908578,1733033439154,-500.0,0.00027394,2]
[343908579,1733033439163,-500.0,0.00027394,2]
[343908580,1733033439173,-350.19482044,0.00027394,2]
[343908581,1733033439185,-500.0,0.00027394,2]
[343908582,1733033439194,-1657.57685279,0.00027395,2]
[343908583,1733033439207,-4878.07314721,0.00027395,2]
[343908584,1733033439217,-230.79483395,0.00027396,2]
[343908585,1733033439226,-500.0,0.00027396,2]
[343908586,1733033439235,-236.3025205,0.00027396,2]
[343908587,1733033439244,-234.49142981,0.00027396,2]
[343908588,1733033439254,-269.94335253,0.00027396,2]
[343908589,1733033439263,-161.55638376,0.00027396,2]
[343908590,1733033439273,-151.0,0.00027396,7]
[343908591,1733033439282,-151.0,0.00027396,7]
[343908592,1733033439292,-151.0,0.00027396,7]
[343908593,1733033439306,-151.0,0.00027396,7]
[343908594,1733033439315,-151.0,0.00027396,7]
[343908595,1733033439325,-1331.81855993,0.00027396,2]
[343908596,1733033439337,-686.69999997,0.00027396,2]
[343908597,1733033439349,-344.74878,0.00027396,2]
[343908598,1733033439454,-475.67,0.00027396,2]
[343908610,1733033443759,-3696.7126601,0.00027396,2]
[343908611,1733033443768,-6535.65,0.00027396,2]
[343908612,1733033443778,-6535.65,0.00027396,2]
[343908613,1733033443787,-1325.43098309,0.00027396,2]
[343908614,1733033443904,-5210.21901691,0.00027396,2]
[343908615,1733033443913,-6535.65,0.00027396,2]
[343908616,1733033443923,-500.0,0.00027397,3]
[343908617,1733033443933,-500.0,0.00027397,3]
[343908618,1733033443943,-608.81963938,0.00027397,3]
[343908619,1733033443953,-589.33515384,0.00027397,3]
[343908620,1733033443963,-505.66599136,0.00027397,3]
[343908621,1733033443972,-500.0,0.00027397,3]
[343908622,1733033443982,-505.84306426,0.00027397,3]
[343908623,1733033443991,-500.0,0.00027397,3]
[343908624,1733033444002,-500.0,0.00027397,3]
[343908625,1733033444011,-500.0,0.00027397,3]
[343908626,1733033444021,-500.0,0.00027397,3]
[343908627,1733033444030,-501.68399566,0.00027397,3]
[343908628,1733033444039,-506.65930246,0.00027397,3]
[343908629,1733033444049,-500.0,0.00027397,3]
[343908630,1733033444059,-592.07583158,0.00027397,3]
[343908631,1733033444068,-500.0,0.00027397,3]
[343908632,1733033444077,-500.0,0.00027397,3]
[343908633,1733033444087,-502.04584716,0.00027397,3]
[343908634,1733033444096,-501.87606586,0.00027397,3]
[343908635,1733033444106,-157.37857733,0.00027397,3]
[343908636,1733033444116,-500.60975892,0.00027397,3]
[343908637,1733033444126,-504.97888179,0.00027397,3]
[343908638,1733033444135,-500.0,0.00027397,3]
[343908639,1733033444145,-500.0,0.00027397,3]
[343908640,1733033444155,-502.53524572,0.00027397,3]
[343908641,1733033444165,-500.0,0.00027397,3]
[343908642,1733033444174,-500.0,0.00027397,3]
[343908643,1733033444184,-503.14650182,0.00027397,3]
[343908644,1733033444195,-501.31174804,0.00027397,3]
[343908645,1733033444205,-502.25391277,0.00027397,3]
[343908646,1733033444215,-507.46450961,0.00027397,3]
[343908647,1733033444226,-502.21091062,0.00027397,3]
[343908648,1733033444235,-501.10519189,0.00027397,3]
[343908649,1733033444244,-414.28702585,0.00027397,2]
[343908650,1733033444255,-500.0,0.00027397,3]
[343908651,1733033444266,-500.0,0.00027397,3]
[343908652,1733033444276,-500.0,0.00027397,3]
[343908653,1733033444286,-500.0,0.00027397,3]
[343908654,1733033444295,-506.83544975,0.00027397,3]
[343908655,1733033444305,-500.0,0.00027397,3]
[343908656,1733033444315,-500.0,0.00027397,3]
[343908657,1733033444324,-502.22757179,0.00027397,3]
[343908658,1733033444334,-200.0,0.00027397,3]
[343908659,1733033444344,-619.32323492,0.00027397,3]
[343908660,1733033444354,-506.69485528,0.00027397,3]
[343908661,1733033444363,-504.34091601,0.00027397,3]
[343908662,1733033444373,-504.48349823,0.00027397,3]
[343908663,1733033444383,-500.0,0.00027397,2]
[343908664,1733033444392,-178.75185353,0.00027397,3]
[343908665,1733033444409,-320.80038467,0.00027397,3]
[343908666,1733033444418,-505.23064295,0.00027397,3]
[343908667,1733033444429,-501.78736762,0.00027397,3]
[343908668,1733033444439,-508.9085894,0.00027397,3]
[343908669,1733033444449,-500.0,0.00027397,3]
[343908670,1733033444459,-500.0,0.00027397,3]
[343908671,1733033444469,-500.0,0.00027397,3]
[343908672,1733033444479,-510.20042518,0.00027397,3]
[343908673,1733033444488,-500.0,0.00027397,3]
[343908674,1733033444498,-559.08953796,0.00027397,3]
[343908675,1733033444510,-500.0,0.00027397,3]
[343908676,1733033444519,-500.0,0.00027397,3]
[343908677,1733033444529,-202.33139846,0.00027397,3]
[343908678,1733033444552,-285.43630822,0.0002,2]
[343908679,1733033444564,-835.51295905,0.0002,2]
[343908686,1733033446661,400.0,0.00013973,2]
[343908688,1733033446758,-48.32156606,0.0002,2]
[343908689,1733033446769,-297.66860154,0.00027397,3]
[343908690,1733033446780,-500.36566798,0.00027397,3]
[343908691,1733033446789,-500.0,0.00027397,3]
[343908692,1733033446799,-333.88743571,0.00027397,3]
[343908693,1733033446810,-500.0,0.00027397,3]
[343908694,1733033446819,-500.0,0.00027397,3]
[343908695,1733033446828,-500.0,0.00027397,3]
[343908696,1733033446838,-500.0,0.00027397,3]
[343908697,1733033446847,-502.62283126,0.00027397,3]
[343908698,1733033446856,-500.0,0.00027397,3]
[343908699,1733033446866,-500.0,0.00027397,3]
[343908700,1733033446875,-500.0,0.00027397,3]
[343908701,1733033446885,-500.0,0.00027397,3]
[343908702,1733033446895,-500.0,0.00027397,3]
[343908703,1733033446905,-78.08685125,0.00027397,3]
[343908704,1733033446922,-421.91314875,0.00027397,3]
[343908705,1733033446931,-500.0,0.00027397,3]
[343908706,1733033446941,-500.0,0.00027397,3]
[343908707,1733033446950,-500.0,0.00027397,3]
[343908708,1733033446959,-524.04465758,0.00027397,3]
[343908709,1733033446970,-503.68635376,0.00027397,3]
[343908710,1733033446979,-502.12595317,0.00027397,3]
[343908711,1733033446989,-500.0,0.00027397,3]
[343908712,1733033446999,-500.0,0.00027397,3]
[343908713,1733033447009,-500.0,0.00027397,3]
[343908714,1733033447018,-501.30489051,0.00027397,3]
[343908715,1733033447028,-543.99896345,0.00027397,3]
[343908716,1733033447037,-505.53403609,0.00027397,3]
[343908717,1733033447046,-500.0,0.00027397,3]
[343908718,1733033447057,-500.0,0.00027397,3]
[343908719,1733033447066,-503.2757934,0.00027397,3]
[343908720,1733033447076,-500.0,0.00027397,3]
[343908721,1733033447085,-500.0,0.00027397,3]
[343908722,1733033447094,-500.0,0.00027397,3]
[343908723,1733033447104,-500.0,0.00027397,3]
[343908724,1733033447115,-500.0,0.00027397,3]
[343908725,1733033447124,-506.98859279,0.00027397,3]
[343908726,1733033447135,-500.0,0.00027397,3]
[343908727,1733033447146,-500.0,0.00027397,3]
[343908728,1733033447155,-500.0,0.00027397,3]
[343908729,1733033447165,-513.05414268,0.00027397,3]
[343908730,1733033447174,-500.0,0.00027397,3]
[343908731,1733033447183,-500.0,0.00027397,3]
[343908732,1733033447193,-500.0,0.00027397,3]
[343908733,1733033447203,-500.0,0.00027397,3]
[343908734,1733033447212,-500.47494417,0.00027397,3]
[343908735,1733033447222,-500.0,0.00027397,3]
[343908736,1733033447231,-500.0,0.00027397,3]
[343908737,1733033447240,-500.0,0.00027397,3]
[343908738,1733033447250,-500.0,0.00027397,3]
[343908739,1733033447259,-504.57992307,0.00027397,3]
[343908740,1733033447268,-500.0,0.00027397,3]
[343908741,1733033447278,-151.0,0.00027397,7]
[343908742,1733033447287,-500.0,0.00027397,3]
[343908743,1733033447297,-151.0,0.00027397,7]
[343908744,1733033447307,-506.95723704,0.00027397,3]
[343908745,1733033447317,-500.0,0.00027397,3]
[343908746,1733033447326,-500.0,0.00027397,3]
[343908747,1733033447335,-500.0,0.00027397,3]
[343908748,1733033447344,-500.0,0.00027397,3]
[343908749,1733033447354,-500.0,0.00027397,3]
[343908750,1733033447364,-536.34379533,0.00027397,3]
[343908751,1733033447373,-500.0,0.00027397,3]
[343908752,1733033447383,-500.0,0.00027397,3]
[343908753,1733033447392,-500.0,0.00027397,3]
[343908754,1733033447406,-500.0,0.00027397,3]
[343908755,1733033447417,-510.49734142,0.00027397,3]
[343908756,1733033447427,-151.0,0.00027397,7]
[343908757,1733033447437,-151.0,0.00027397,7]
[343908758,1733033447448,-151.0,0.00027397,7]
[343908759,1733033447457,-250.282082,0.00027397,7]
[343908760,1733033447467,-500.0,0.00027397,3]
[343908761,1733033447477,-500.0,0.00027397,3]
[343908762,1733033447486,-500.0,0.00027397,3]
[343908763,1733033447496,-500.0,0.00027397,3]
[343908764,1733033447505,-500.0,0.00027397,3]
[343908765,1733033447514,-500.0,0.00027397,3]
[343908766,1733033447524,-500.0,0.00027397,3]
[343908767,1733033447533,-500.0,0.00027397,3]
[343908768,1733033447543,-500.0,0.00027397,3]
[343908769,1733033447555,-500.0,0.00027397,3]
[343908770,1733033447564,-500.0,0.00027397,3]
[343908771,1733033447574,-470.58191206,0.00027397,3]
[343908772,1733033447583,-500.0,0.00027397,3]
[343908773,1733033447593,-500.0,0.00027397,3]
[343908774,1733033447603,-500.0,0.00027397,3]
[343908775,1733033447613,-500.0,0.00027397,3]
[343908776,1733033447623,-500.0,0.00027397,3]
[343908777,1733033447632,-500.0,0.00027397,3]
[343908778,1733033447643,-500.0,0.00027397,3]
[343908779,1733033447654,-501.67349435,0.00027397,3]
[343908780,1733033447666,-500.0,0.00027397,3]
[343908781,1733033447679,-500.0,0.00027397,3]
[343908782,1733033447691,-500.0,0.00027397,3]
[343908783,1733033447703,-500.0,0.00027397,3]
[343908784,1733033447716,-500.0,0.00027397,3]
[343908785,1733033447726,-500.0,0.00027397,3]
[343908786,1733033447737,-534.83282221,0.00027397,3]
[343908787,1733033447747,-500.0,0.00027397,3]
[343908788,1733033447761,-500.0,0.00027397,3]
[343908789,1733033447773,-510.51980718,0.00027397,3]
[343908790,1733033447785,-500.0,0.00027397,3]
[343908791,1733033447797,-500.0,0.00027397,3]
[343908792,1733033447809,-500.0,0.00027397,3]
[343908793,1733033447820,-500.0,0.00027397,3]
[343908794,1733033447832,-500.48771521,0.00027397,3]
[343908795,1733033447844,-500.0,0.00027397,3]
[343908796,1733033447856,-500.0,0.00027397,3]
[343908797,1733033447868,-505.79206027,0.00027397,3]
[343908798,1733033447879,-505.35857486,0.00027397,3]
[343908799,1733033447890,-502.93257498,0.00027397,3]
[343908800,1733033447900,-500.0,0.00027397,3]
[343908801,1733033447911,-500.0,0.00027397,3]
[343908802,1733033447923,-500.0,0.00027397,3]
[343908803,1733033447936,-519.43977137,0.00027397,3]
[343908804,1733033447949,-515.62,0.00027397,3]
[343908805,1733033447960,-534.97382057,0.00027397,3]
[343908806,1733033447972,-500.0,0.00027397,3]
[343908807,1733033447984,-151.0,0.00027397,7]
[343908808,1733033447995,-151.0,0.00027397,7]
[343908809,1733033448006,-151.0,0.00027397,7]
[343908810,1733033448019,-500.0,0.00027397,3]
[343908811,1733033448031,-151.0,0.00027397,7]
[343908812,1733033448044,-151.0,0.00027397,7]
[343908813,1733033448056,-151.0,0.00027397,7]
[343908814,1733033448067,-500.0,0.00027397,3]
[343908815,1733033448080,-500.0,0.00027397,3]
[343908816,1733033448094,-151.0,0.00027397,7]
[343908817,1733033448105,-268.36773,0.00027397,7]
[343908818,1733033448116,-500.0,0.00027397,3]
[343908819,1733033448129,-500.0,0.00027397,3]
[343908820,1733033448141,-502.89654489,0.00027397,3]
[343908821,1733033448154,-501.27849997,0.00027397,3]
[343908822,1733033448167,-502.58065145,0.00027397,3]
[343908823,1733033448180,-524.28750305,0.00027397,3]
[343908824,1733033448195,-501.62377829,0.00027397,3]
[343908825,1733033448207,-500.0,0.00027397,3]
[343908826,1733033448220,-500.0,0.00027397,3]
[343908827,1733033448231,-209.5038292,0.00027397,3]